Workbook

Sheet S1
A1: TR-4221A 1a-14 | E1: Concrete Mix Design Form | P1: Material Class | S1: AAA | Z1: =IF(S1="Grout",1,2) -> 2
P2: Mix Identifier
P3: Date
E4: JMF No. | P4: District
I5: - | N5: =IF(ISBLANK(H15)," ","W/Fibers") ->  | P5: ECMS No.
A6: SR/WO | G6: Sec/Segment | M6: Contractor
A7: Concrete Producer | E7: NESL | L7: Location
A8: Supplier Code | H8: Supplier Internal Code | P8: FA #
A10: Material | D10: Material Class | F10: Product Name | H10: Producer Name | N10: Supplier Code | Q10: Sp. Gr. | R10: Abs | S10: ASR | T10: Lab No
AO11: AAAP
A12: Cement | AO12: AAAHPC
A13: Pozzolan 1 | AO13: AAA
A14: Pozzolan 2 | AO14: AA Slip Form Paving
A15: Fiber | AO15: AA
A16: Coarse Agg #1 | AO16: AA 7 Hr. Accl.
A17: Coarse Agg #2 | AO17: A
A18: Fine Agg | AO18: A Tremie
A19: Water | Q19: Oz/yd (As Req. | U19: Mfg Dose/cwt | AO19: C
A20: Admixture | D20: AEA | Q20: Oz/cwt | T20: =($F$44/100)*S20 -> 0 | U20: Min | V20: Max | AO20: HES
A21: Admixture | Q21: Oz/cwt | T21: =($F$44/100)*S21 -> 0 | AO21: Flow Fill A
A22: Admixture | Q22: Oz/cwt | T22: =($F$44/100)*S22 -> 0 | AO22: Flow Fill B
A23: Admixture | Q23: Oz/cwt | T23: =($F$44/100)*S23 -> 0 | AO23: Flow Fill C
A24: Admixture > 127 oz | Q24: % Sol | T24: When using a WR admixture, it must be used at manufacturer's minimum dosage rate to use the maximum 6 1/2" slump spec per 704.1(d)4.a. When using HRWR admixture, it must be used at the manufacturer's minimum dosage rate to use the maximum 8" slump per 704.1(d)a. Any additional admixures utilized to enhance the concrete performance may be below the manufacturer's minimun recommended dosage rate. | AO24: Grout
Q25: wt/gal | AO25: Shotcrete
A26: Admixture > 127 oz | Q26: % Sol
Q27: wt/gal
A28: When RE admixture is used in concrete > 80 F or in hot weather, the manufacturer's minimum recommended dosage rate for RE admixture must be used to get 90 minutes of mixing time. | K28: Total admix water per cubic yd = | Q28: =(((1-R24/100)*R25)*(S24/128))+(((1-R26/100)*R27)*(S26/128)) -> 0 | S28: lbs/yd
K29: Total admix solids per cubic yd = | Q29: =((R24/100)*R25)*(S24/128)+((R26/100)*(S26/128)) -> 0 | S29: lbs/yd
J30: 28/7 ratio from worksheet dated | Q30: =IF(Z1=1,"",'S2'!G26) -> 00:00:00
K31: *28/7 day strength ratio | Q31: =IF(ISTEXT(P37)," ",P37/H37) -> 
A32: RCP Coulombs | F32: =IF(S1="AAAP",IF(D32>1999,"Needs to be <2000 unless approved by the DME",""),IF(S1="AAAHPC",IF(D32>1199,"Needs to be < 1200 unless approved by the DME",""))) -> FALSE | O32: * (AAAP Only)
A33: Microstrain | F33: =IF(D33>500,"Must be < 500 microstrain"," ") -> 
A34: Strength Data Based on Max W/C | G34: ='S2'!AU1 -> 0.4 | I34: From trial mix dated | M34: ='S2'!G26 -> 00:00:00
A35: F'c (compressive strength) psi | G35: =Sheet5!N9 -> 
G36: =Sheet5!N10 -> 
A37: ='S2'!H63 -> 7 | B37: Hrs. | C37: =IF(Z1=1,"",'S2'!N63) ->  | D37: Avg psi | F37: ='S2'!A65 -> 7 | G37: Days | H37: =IF(Z1=1,"",'S2'!F65) ->  | I37: Avg psi | K37: ='S2'!H65 -> 14 | L37: Days | M37: =IF(Z1=1,"",'S2'!M65) ->  | N37: ='S2'!O65 -> 28 | O37: Days | P37: =IF(Z1=1,"",'S2'!T65) ->  | Q37: Avg psi
C38: =Sheet5!N6 -> 
A39: Mix Number | F39: Trial Mix
A40: W/C Ratio by wt. | F40: 0.4 | I40: 0.39 | L40: 0.38
A41: Cement (lbs) | F41: ='S2'!T33 -> 600 | I41: =IF(Z1=2,'S3'!S10,'S5'!S10) -> 600 | L41: =IF(Z1=2,'S3'!S38,'S5'!S38) -> 600 | O41: =IF(Z1=2,'S4'!S10,'S6'!S10) -> 0 | R41: =IF(Z1=2,'S4'!S38,'S6'!S38) -> 0
A42: Pozzolan 1 (lbs) | F42: ='S2'!T35 -> 0 | I42: =IF(Z1=2,'S3'!S12,'S5'!S12) -> 0 | L42: =IF(Z1=2,'S3'!S40,'S5'!S40) -> 0 | O42: =IF(Z1=2,'S4'!S12,'S6'!S12) -> 0 | R42: =IF(Z1=2,'S4'!S40,'S6'!S40) -> 0
A43: Pozzolan 2 (lbs) | F43: ='S2'!T37 -> 0 | I43: =IF(Z1=2,'S3'!S14,'S5'!S14) -> 0 | L43: =IF(Z1=2,'S3'!S42,'S5'!S42) -> 0 | O43: =IF(Z1=2,'S4'!S14,'S6'!S14) -> 0 | R43: =IF(Z1=2,'S4'!S42,'S6'!S42) -> 0
A44: Total Cementitious (lbs) | F44: =SUM(F41:F43) -> 600 | I44: =IF(ISBLANK(I40)," ",SUM(I41:I43)) -> 600 | L44: =IF(ISBLANK(L40)," ",SUM(L41:L43)) -> 600 | O44: =IF(ISBLANK(O40)," ",SUM(O41:O43)) ->  | R44: =IF(ISBLANK(R40)," ",SUM(R41:R43)) -> 
A45: Coarse Agg. 1 (lbs) | F45: ='S2'!T39 -> 0 | I45: =IF(Z1=2,'S3'!S17,'S5'!S17) -> 0 | L45: =IF(Z1=2,'S3'!S45,'S5'!S45) -> 0 | O45: =IF(Z1=2,'S4'!S17,'S6'!S17) -> 0 | R45: =IF(Z1=2,'S4'!S45,'S6'!S45) -> 0
A46: Coarse Agg. 2 (lbs) | F46: ='S2'!T41 -> 0 | I46: =IF(Z1=2,'S3'!S19,'S5'!S19) -> 0 | L46: =IF(Z1=2,'S3'!S47,'S5'!S47) -> 0 | O46: =IF(Z1=2,'S4'!S19,'S6'!S19) -> 0 | R46: =IF(Z1=2,'S4'!S47,'S6'!S47) -> 0
A47: Total Coarse Agg. (lbs) | F47: =SUM(F45:F46) -> 0 | I47: =IF(ISBLANK(I40)," ",SUM(I45:I46)) -> 0 | L47: =IF(ISBLANK(L40)," ",SUM(L45:L46)) -> 0 | O47: =IF(ISBLANK(O40)," ",SUM(O45:O46)) ->  | R47: =IF(ISBLANK(R40)," ",SUM(R45:R46)) -> 
A48: Fine Agg (lbs) | F48: ='S2'!T53 -> 0 | I48: =IF(Z1=2,'S3'!S29,'S5'!S29) -> 0 | L48: =IF(Z1=2,'S3'!S57,'S5'!S57) -> 0 | O48: =IF(Z1=2,'S4'!S29,'S6'!S29) -> 0 | R48: =IF(Z1=2,'S4'!S57,'S6'!S57) -> 0
A49: Total water (lbs) | F49: ='S2'!T47 -> 240 | I49: =IF(Z1=2,'S3'!S23,'S5'!S23) -> 234 | L49: =IF(Z1=2,'S3'!S51,'S5'!S51) -> 228 | O49: =IF(Z1=2,'S4'!S23,'S6'!S23) -> 0 | R49: =IF(Z1=2,'S4'!S51,'S6'!S51) -> 0
A50: Admixture water (lbs) | F50: =IF(SUM($S$24:$S$27)<128," ",$Q$28) ->  | I50: =IF(ISBLANK(I40)," ",IF(SUM($S$24:$S$27)<128," ",$Q$28)) ->  | L50: =IF(ISBLANK(L40)," ",IF(SUM($S$24:$S$27)<128," ",$Q$28)) ->  | O50: =IF(ISBLANK(O40)," ",IF(SUM($S$24:$S$27)<128," ",$Q$28)) ->  | R50: =IF(ISBLANK(R40)," ",IF(SUM($S$24:$S$27)<128," ",$Q$28)) -> 
A51: Mix water (lbs) | F51: =IF(F50=" ",F49,F49-F50) -> 240 | I51: =IF(ISBLANK(I40)," ",IF(I50=" ",I49,I49-I50)) -> 234 | L51: =IF(ISBLANK(L40)," ",IF(L50=" ",L49,L49-L50)) -> 228 | O51: =IF(ISBLANK(O40)," ",IF(O50=" ",O49,O49-O50)) ->  | R51: =IF(ISBLANK(R40)," ",IF(R50=" ",R49,R49-R50)) -> 
A52: Admixture solids/yd (lbs) | F52: =$Q$29 -> 0 | I52: =IF(ISBLANK(I40)," ",$Q$29) -> 0 | L52: =IF(ISBLANK(L40)," ",$Q$29) -> 0 | O52: =IF(ISBLANK(O40)," ",$Q$29) ->  | R52: =IF(ISBLANK(R40)," ",$Q$29) -> 
A53: Total (lbs) | F53: =IF(F41=0,0,F41+F42+F43+F45+F46+F48+F49+F52) -> 840 | I53: =IF(Z1=2,'S3'!S31,'S5'!S31) -> 834 | L53: =IF(Z1=2,'S3'!S59,'S5'!S59) -> 828 | O53: =IF(Z1=2,'S4'!S31,'S6'!S31) -> 0 | R53: =IF(Z1=2,'S4'!S59,'S6'!S59) -> 0
A54: Unit weight (lbs/cu. ft.) | F54: =ROUND(F53/27,1) -> 31.1 | I54: =IF(ISBLANK(I40)," ",ROUND(I53/27,1)) -> 30.9 | L54: =IF(ISBLANK(L40)," ",ROUND(L53/27,1)) -> 30.7 | O54: =IF(ISBLANK(O40)," ",ROUND(O53/27,1)) ->  | R54: =IF(ISBLANK(R40)," ",ROUND(R53/27,1)) -> 
A55: Coarse Agg vol. (cu. ft.) | F55: ='S2'!J43 -> 0 | I55: =IF(Z1=2,'S3'!J17+'S3'!J19,'S5'!J17+'S5'!J19) -> 0 | L55: =IF(Z1=2,'S3'!J45+'S3'!J47,'S5'!J45+'S5'!J47) -> 0 | O55: =IF(Z1=2,'S4'!J17+'S4'!J19,'S6'!J17+'S6'!J19) -> 0 | R55: =IF(Z1=2,'S4'!J45+'S4'!J47,'S6'!J45+'S6'!J47) -> 0
A56: Total water (gal.) | F56: =ROUND(F49/8.33,1) -> 28.8 | I56: =IF(ISBLANK(I40)," ",ROUND(I49/8.33,1)) -> 28.1 | L56: =IF(ISBLANK(L40)," ",ROUND(L49/8.33,1)) -> 27.4 | O56: =IF(ISBLANK(O40)," ",ROUND(O49/8.33,1)) ->  | R56: =(IF(ISBLANK(R40)," ",ROUND(R49/8.33,1))) -> 
A57: Mix water (gal) | F57: =ROUND(F51/8.33,1) -> 28.8 | I57: =IF(ISBLANK(I40)," ",ROUND(I51/8.33,1)) -> 28.1 | L57: =IF(ISBLANK(L40)," ",ROUND(L51/8.33,1)) -> 27.4 | O57: =IF(ISBLANK(O40)," ",ROUND(O51/8.33,1)) ->  | R57: =IF(ISBLANK(R40)," ",ROUND(R51/8.33,1)) -> 
A59: Designed by | S59: Date
A61: Approved and Submitted by | S61: Date
A63: Reviewed by Contractor | S63: Date
A65: Reviewed by Materials Engr/Mgr | S65: Date

Sheet S2
A1: ='S1'!A1:D5 -> TR-4221A 1a-14 | E1: Concrete Mix Design Form | P1: Material Class | S1: ='S1'!S1 -> AAA | AR1: 28:7 day ratio | AT1: =ROUND($T$65/$F$65,2) ->  | AU1: =ROUND(C30,2) -> 0.4
P2: Date | S2: ='S1'!S3 -> 00:00:00
G3: ='S1'!G5 -> 0 | H3: ='S1'!H5 -> 0 | I3: - | J3: ='S1'!J5 -> 0 | K3: ='S1'!K5 -> 0 | L3: ='S1'!L5 -> 0 | M3: ='S1'!M5 -> 0 | P3: District | S3: ='S1'!S4 -> 0
E4: Mix Design Worksheet | P4: ECMS No. | S4: ='S1'!S5 -> 0
A6: Concrete Producer | E6: ='S1'!E7 -> NESL | M6: Plant or Project | P6: ='S1'!N7 -> 0
A8: Sieve Analysis, % Passing
A9: Sieve Sizes
B10: 1.5 | D10: 1" | F10: 0.75 | H10: 0.5 | J10: 0.375 | L10: #4 | N10: #8 | P10: #16 | R10: #30 | T10: #50 | V10: #100
A12: A57
A14: A8
A16: A
P18: FM
A20: Maximun Density | H20: % Hardened Air Results | O20: % Solids | S20: Bulletin 5 method
A22: Dry Rodded Unit wt | O22: CA volume | S22: Bulletin 5 method
AA23: =T33+T35+T37 -> 600 | AB23: Cement Factor
A24: Volume of dry rodded coarse aggregate(s) per unit volume of concrete | P24: (ACI 211 Method)
A25: ````````````````````````````````````````````````````````````````````````````````````````````````````````````````````````````````````````````````````````````````````````````````````
A26: Date trial mix design was done | I26: Wt. / Volume Calculations
A27: ='S1'!F39 -> Trial Mix
B28: Specific Gravity C Agg 1 | H28: Specific Gravity C Agg 2 | N28: Specific Gravity F Agg
A30: W/C Ratio | C30: =ROUND('S1'!F40,2) -> 0.4 | I30: Mix # | K30: ='S1'!F39 -> Trial Mix | O30: (show adjustments on aditional pages)
A31: =Sheet5!N8 -> 
A32: =IF(ISBLANK(T33),"",Sheet5!N7) -> Cement factor does not meet min. for a 'AAA' mix
A33: Cement | D33: ='S1'!D12 -> 0 | I33: = | J33: =IF(ISBLANK(T33),0,ROUND(T33/62.4/3.15,2)) -> 3.05 | L33: Cu. Ft. | O33: x S.G. x 62.4 | S33: = | T33: 600 | V33: lbs
F34: % Pozzolan
A35: Pozzolan 1 | D35: ='S1'!D13 -> 0 | F35: =(T35+T37)/(T33+T35+T37) -> 0 | I35: = | J35: =IF(ISBLANK('S1'!Q13),0,ROUND(T35/62.4/'S1'!Q13,2)) -> 0 | L35: Cu. Ft. | O35: x S.G. x 62.4 | S35: = | V35: lbs
A37: Pozzolan 2 | D37: ='S1'!D14 -> 0 | I37: = | J37: =IF(ISBLANK('S1'!Q14),0,ROUND(T37/62.4/'S1'!Q14,2)) -> 0 | L37: Cu. Ft. | O37: x S.G. x 62.4 | S37: = | V37: lbs
A38: `````````````````````````````````````````````````````````````````````````````````````````````````````````````````````````````````````````````````````````````````````````````````````
A39: C Agg #1 | D39: ='S1'!D16 -> 0 | I39: = | J39: =IF(ISBLANK(F28),0,ROUND(T39/62.4/F28,2)) -> 0 | L39: Cu. Ft. | O39: x S.G. x 62.4 | S39: = | V39: lbs
AA40: =J39+J41 -> 0 | AB40: Vol of C Agg
A41: C Agg #2 | D41: ='S1'!D17 -> 0 | I41: = | J41: =IF(ISBLANK(L28),0,ROUND(T41/62.4/L28,2)) -> 0 | L41: Cu. Ft. | O41: x S.G. x 62.4 | S41: = | V41: lbs
J43: =IF(ISTEXT(J39),0,J39+J41) -> 0 | L43: Cu. Ft. | O43: x S.G. x 62.4 | S43: = | T43: =T39+T41 -> 0 | V43: lbs
A44: =IF(COUNTA(T39:T41)=0," ",Sheet5!N11) -> 
A45: =Sheet5!N12 -> 
A46: `````````````````````````````````````````````````````````````````````````````````````````````````````````````````````````````````````````````````````````````````````````````````````
A47: Water | C47: =ROUND(T47/8.33,1) -> 28.8 | E47: (Gals) | G47: x .113 | I47: = | J47: =ROUND(T47/62.4,2) -> 3.85 | L47: Cu. Ft. | O47: x 62.4 | S47: = | T47: =ROUND((T33+T35+T37)*AU1,0) -> 240 | V47: lbs
A49: % Air | C49: 6 | E49: % / 100x27.0 | I49: = | J49: =ROUND(C49/100*27,2) -> 1.62 | L49: Cu. Ft.
N50: Admix solids if nec. | S50: = | T50: ='S1'!Q29 -> 0 | V50: lbs
G51: Subtotal | I51: = | J51: =IF(ISTEXT(J33),0,J33+J35+J37+J39+J41+J47+J49) -> 8.52 | L51: Cu. Ft.
A53: F Agg. | C53: ='S1'!D18 -> 0 | E53: 27.0 - subtotal | I53: = | J53: =IF(ISTEXT(J51),0,27-J51) -> 18.48 | L53: Cu. Ft. | O53: x S.G. x 62.4 | S53: = | T53: =IF(ISTEXT(J53),"",ROUND(J53*R28*62.4,0)) -> 0 | V53: lbs
H55: Totals = | J55: =IF(ISTEXT(J51),0,J51+J53) -> 27 | L55: Cu. Ft. | R55: Totals = | T55: =IF(ISBLANK(T33),"",T33+T35+T37+T43+T47+T50+T53) -> 840 | V55: lbs
A56: `````````````````````````````````````````````````````````````````````````````````````````````````````````````````````````````````````````````````````````````````````````````````````
A57: Temperature: | E57: Concrete | I57: F | J57: Air | N57: F | O57: Unit Wt | Q57: =IF(ISTEXT(T55)," ",ROUND(T55/27,2)) -> 31.11 | S57: lbs/cu. ft | U57: Calculated
A58: Initial testing: | E58: Slump | I58: in. | J58: Air content | N58: % | O58: Unit Wt | S58: lbs/cu. ft | U58: Actual
A59: At pt. of placement: | E59: Slump | I59: in. | J59: Air content | N59: % | O59: Mortar Content | R59: =IF(ISTEXT(J43),"",27-J43) -> 27
A60: `````````````````````````````````````````````````````````````````````````````````````````````````````````````````````````````````````````````````````````````````````````````````````
H61: F'c (Compressive) psi | P61: =IF(S1<>"AAAP","",IF(ISERROR(AT1),"",IF(AND(S1="AAAP",AT1<1.33),"28 to 7 day ratio is less than 1.33",""))) -> 
A62: =Sheet5!N9 ->  | H62: Hours | J62: 1 | L62: 2 | N62: Avg psi | P62: =Sheet5!N10 -> 
H63: 7 | N63: =IF(ISBLANK(L63),"",ROUND(AVERAGE(J63:M63),0)) -> 
A64: Days | B64: 1 | D64: 2 | F64: Avg psi | H64: Days | I64: 1 | K64: 2 | M64: Avg psi | O64: Days | P64: 1 | R64: 2 | T64: Avg psi
A65: =IF(S1="HES",3,7) -> 7 | F65: =IF(ISBLANK(D65),"",ROUND(AVERAGE(B65:E65),0)) ->  | H65: 14 | M65: =IF(ISBLANK(K65),"",ROUND(AVERAGE(I65:L65),0)) ->  | O65: 28 | T65: =IF(ISBLANK(R65),"",ROUND(AVERAGE(P65:S65),0)) -> 

Sheet S5 (hidden)
A1: ='S1'!A1:D5 -> TR-4221A 1a-14 | E1: Concrete Mix Design Form | P1: Material Class | S1: ='S1'!S1 -> AAA | AA1: Round W/C mix1 | AC1: =ROUND('S1'!I40,2) -> 0.39
P2: Date | S2: ='S1'!S3 -> 00:00:00 | AA2: Round W/C mix2 | AC2: =ROUND('S1'!L40,2) -> 0.38
G3: ='S1'!G5 -> 0 | H3: ='S1'!H5 -> 0 | I3: - | J3: ='S1'!J5 -> 0 | K3: ='S1'!K5 -> 0 | L3: ='S1'!L5 -> 0 | M3: ='S1'!M5 -> 0 | P3: District | S3: ='S1'!S4 -> 0
E4: Mix Design Worksheet | P4: ECMS No. | S4: ='S1'!S5 -> 0
A6: Wt. / Volume Calculations
B8: W/C Ratio | D8: =ROUND('S1'!I40,2) -> 0.39 | I8: Mix # | K8: ='S1'!I39 -> 0
B10: Cement | D10: =IF(ISBLANK('S1'!I40)," ",'S1'!D12) -> 0 | I10: = | J10: =IF(ISTEXT(S10),0,ROUND(S10/62.4/3.15,2)) -> 0 | L10: Cu Ft | N10: x S.G. x 62.4 | R10: = | U10: lbs
F11: % Pozzolan
B12: Plozzolan 1 | D12: =IF(ISBLANK('S1'!I40)," ",'S1'!D13) -> 0 | I12: = | J12: =IF(ISBLANK('S1'!$Q$13),0,IF(ISTEXT(S12),0,ROUND(S12/62.4/'S1'!$Q$13,2))) -> 0 | L12: Cu Ft | N12: x S.G. x 62.4 | R12: = | U12: lbs
F13: =IF(ISBLANK('S1'!I40)," ",(S12+S14)/(S10+S12+S14)) -> 
B14: Plozzolan 2 | D14: =IF(ISBLANK('S1'!I40)," ",'S1'!D14) -> 0 | I14: = | J14: =IF(ISBLANK('S1'!$Q$14),0,IF(ISTEXT(S14),0,ROUND(S14/62.4/'S1'!$Q$14,2))) -> 0 | L14: Cu Ft | N14: x S.G. x 62.4 | R14: = | U14: lbs
A16: ``````````````````````````````````````````````````````````````````````````````````````````````````````````````````````````````````````````````````````````````````````````````````````````````````````````````````````````````````
B17: C Agg 1 | D17: =IF(ISBLANK('S1'!I40)," ",'S1'!D16) -> 0 | I17: = | J17: =IF(ISBLANK('S1'!$Q$16),0,ROUND(S17/62.4/'S1'!$Q$16,2)) -> 0 | L17: Cu Ft | N17: x S.G. x 62.4 | R17: = | U17: lbs
B19: C Agg 2 | D19: =IF(ISBLANK('S1'!I40)," ",'S1'!D17) -> 0 | I19: = | J19: =IF(ISBLANK('S1'!$Q$17),0,ROUND(S19/62.4/'S1'!$Q$17,2)) -> 0 | L19: Cu Ft | N19: x S.G. x 62.4 | R19: = | U19: lbs
A20: =IF(COUNTA(S17:S19)=0,"",Sheet5!N13) -> 
A21: =Sheet5!N14 -> 
A22: `````````````````````````````````````````````````````````````````````````````````````````````````````````````````````````````````````````````````````````````````````````````````````
B23: Water | D23: =IF(ISTEXT(S23)," ",ROUND(S23/8.33,1)) -> 0 | I23: = | J23: =IF(ISTEXT(S23),0,ROUND(S23/62.4,2)) -> 0 | L23: Cu Ft | N23: x 62.4 | R23: = | S23: =IF(ISBLANK('S1'!I40),0,ROUND((S10+S12+S14)*AC1,0)) -> 0 | U23: lbs
B25: % Air | D25: =IF(ISBLANK('S1'!I40)," ",'S2'!$C$49) -> 6 | F25: % / 100 x 27.0 | I25: = | J25: =IF(ISTEXT(D25),0,ROUND(D25/100*27,2)) -> 1.62 | L25: Cu Ft | N25: Admix (solids if nec) | R25: = | S25: ='S1'!$Q$29 -> 0 | U25: lbs
G27: Subtotal = | J27: =J10+J12+J14+J17+J19+J23+J25 -> 1.62 | L27: Cu Ft
B29: F Agg | D29: =IF(ISBLANK('S1'!I40)," ",'S1'!D18) -> 0 | F29: 27.0 - subtotal = | J29: =IF(J27=0,0,27-J27) -> 25.38 | L29: Cu Ft | N29: x S.G. x 62.4 | R29: = | S29: =J29*'S1'!$Q$18*62.4 -> 0 | U29: lbs
H31: Totals | J31: =IF(ISTEXT(J27),"",J29+J27) -> 27 | S31: =S10+S12+S14+S17+S19+S23+S25+S29 -> 0 | U31: lbs
A34: Wt. / Volume Calculations
B36: W/C Ratio | D36: =ROUND('S1'!L40,2) -> 0.38 | I36: Mix # | K36: ='S1'!L39 -> 0
B38: Cement | D38: =IF(ISBLANK('S1'!L40)," ",'S1'!D12) -> 0 | I38: = | J38: =IF(ISTEXT(S38),0,ROUND(S38/62.4/3.15,2)) -> 0 | L38: Cu Ft | N38: x S.G. x 62.4 | R38: = | U38: lbs
F39: % Pozzolan
B40: Plozzolan 1 | D40: =IF(ISBLANK('S1'!L40)," ",'S1'!D13) -> 0 | I40: = | J40: =IF(ISBLANK('S1'!$Q$13),0,IF(ISTEXT(S40),0,ROUND(S40/62.4/'S1'!$Q$13,2))) -> 0 | L40: Cu Ft | N40: x S.G. x 62.4 | R40: = | U40: lbs
F41: =IF(ISBLANK('S1'!I40)," ",(S40+S42)/(S38+S40+S42)) -> 
B42: Plozzolan 2 | D42: =IF(ISBLANK('S1'!L40)," ",'S1'!D14) -> 0 | I42: = | J42: =IF(ISBLANK('S1'!$Q$14),0,IF(ISTEXT(S42),0,ROUND(S42/62.4/'S1'!$Q$14,2))) -> 0 | L42: Cu Ft | N42: x S.G. x 62.4 | R42: = | U42: lbs
A44: `````````````````````````````````````````````````````````````````````````````````````````````````````````````````````````````````````````````````````````````````````````````````````
B45: C Agg 1 | D45: =IF(ISBLANK('S1'!L40)," ",'S1'!D16) -> 0 | I45: = | J45: =IF(ISBLANK('S1'!$Q$16),0,ROUND(S45/62.4/'S1'!$Q$16,2)) -> 0 | L45: Cu Ft | N45: x S.G. x 62.4 | R45: = | U45: lbs
B47: C Agg 2 | D47: =IF(ISBLANK('S1'!L40)," ",'S1'!D17) -> 0 | I47: = | J47: =IF(ISBLANK('S1'!$Q$17),0,ROUND(S47/62.4/'S1'!$Q$17,2)) -> 0 | L47: Cu Ft | N47: x S.G. x 62.4 | R47: = | U47: lbs
A48: =IF(COUNTA(S45:S47)=0,"",Sheet5!N15) -> 
A49: =Sheet5!N16 -> 
A50: `````````````````````````````````````````````````````````````````````````````````````````````````````````````````````````````````````````````````````````````````````````````````````
B51: Water | D51: =IF(ISTEXT(S51)," ",ROUND(S51/8.33,1)) -> 0 | I51: = | J51: =IF(ISTEXT(S51),0,ROUND(S51/62.4,2)) -> 0 | L51: Cu Ft | N51: x 62.4 | R51: = | S51: =IF(ISBLANK('S1'!L40),0,IF(ISTEXT(AC2)," ",ROUND((S38+S40+S42)*AC2,0))) -> 0 | U51: lbs
B53: % Air | D53: =IF(ISBLANK('S1'!L40)," ",'S2'!$C$49) -> 6 | F53: % / 100 x 27.0 | I53: = | J53: =IF(ISTEXT(D53),0,ROUND(D53/100*27,2)) -> 1.62 | L53: Cu Ft | N53: Admix (solids if nec) | R53: = | S53: ='S1'!$Q$29 -> 0 | U53: lbs
G55: Subtotal = | J55: =J38+J40+J42+J45+J47+J51+J53 -> 1.62
B57: F Agg | D57: =IF(ISBLANK('S1'!L40)," ",'S1'!D18) -> 0 | F57: 27.0 - subtotal = | J57: =IF(J55=0,0,27-J55) -> 25.38 | L57: Cu Ft | N57: x S.G. x 62.4 | R57: = | S57: =J57*'S1'!$Q$18*62.4 -> 0 | U57: lbs
H59: Totals | J59: =IF(ISTEXT(J55),"",J57+J55) -> 27 | L59: Cu Ft | S59: =S38+S40+S42+S45+S47+S51+S53+S57 -> 0 | U59: lbs

Sheet S6 (hidden)
A1: ='S1'!A1:D5 -> TR-4221A 1a-14 | E1: Concrete Mix Design Form | P1: Material Class | S1: ='S1'!S1 -> AAA | AA1: Rounded W/C Mix 3 | AC1: =ROUND(D8,2) -> 0
P2: Date | S2: ='S1'!S3 -> 00:00:00 | AA2: Rounded W/C Mix 4 | AC2: =ROUND(D36,2) -> 0
G3: ='S1'!G5 -> 0 | H3: ='S1'!H5 -> 0 | I3: - | J3: ='S1'!J5 -> 0 | K3: ='S1'!K5 -> 0 | L3: ='S1'!L5 -> 0 | M3: ='S1'!M5 -> 0 | P3: District | S3: ='S1'!S4 -> 0
E4: Mix Design Worksheet | P4: ECMS No. | S4: ='S1'!S5 -> 0
A6: Wt. / Volume Calculations
B8: W/C Ratio | D8: =ROUND('S1'!O40,2) -> 0 | I8: Mix # | K8: ='S1'!O39 -> 0
B10: Cement | D10: =IF(ISBLANK('S1'!O40)," ",'S1'!D12) ->  | I10: = | J10: =IF(ISTEXT(S10),0,ROUND(S10/62.4/3.15,2)) -> 0 | L10: Cu Ft | N10: x S.G. x 62.4 | R10: = | U10: lbs
F11: % Pozzolan
B12: Plozzolan 1 | D12: =IF(ISBLANK('S1'!O40)," ",'S1'!D13) ->  | I12: = | J12: =IF(ISBLANK('S1'!$Q$13),0,IF(ISTEXT(S12),0,ROUND(S12/62.4/'S1'!$Q$13,2))) -> 0 | L12: Cu Ft | N12: x S.G. x 62.4 | R12: = | U12: lbs
F13: =IF(ISBLANK('S1'!O40)," ",(S12+S14)/(S10+S12+S14)) -> 
B14: Plozzolan 2 | D14: =IF(ISBLANK('S1'!O40)," ",'S1'!D14) ->  | I14: = | J14: =IF(ISBLANK('S1'!$Q$14),0,IF(ISTEXT(S14),0,ROUND(S14/62.4/'S1'!$Q$14,2))) -> 0 | L14: Cu Ft | N14: x S.G. x 62.4 | R14: = | U14: lbs
Y15: =J17+J19 -> 0
A16: ``````````````````````````````````````````````````````````````````````````````````````````````````````````````````````````````````````````````````````````````````````````````````````````````````````````````````````````````````
B17: C Agg 1 | D17: =IF(ISBLANK('S1'!O40)," ",'S1'!D16) ->  | I17: = | J17: =IF(ISBLANK('S1'!$Q$16),0,ROUND(S17/62.4/'S1'!$Q$16,2)) -> 0 | L17: Cu Ft | N17: x S.G. x 62.4 | R17: = | U17: lbs
B19: C Agg 2 | D19: =IF(ISBLANK('S1'!O40)," ",'S1'!D17) ->  | I19: = | J19: =IF(ISBLANK('S1'!$Q$17),0,ROUND(S19/62.4/'S1'!$Q$17,2)) -> 0 | L19: Cu Ft | N19: x S.G. x 62.4 | R19: = | U19: lbs
A20: =IF(COUNTA(S17:S19)=0,"",Sheet5!N17) -> 
A21: =Sheet5!N18 -> 
A22: `````````````````````````````````````````````````````````````````````````````````````````````````````````````````````````````````````````````````````````````````````````````````````
B23: Water | D23: =IF(ISTEXT(S23)," ",ROUND(S23/8.33,1)) -> 0 | I23: = | J23: =IF(ISTEXT(S23),0,ROUND(S23/62.4,2)) -> 0 | L23: Cu Ft | N23: x 62.4 | R23: = | S23: =IF(ISBLANK('S1'!O40),0,IF(ISTEXT(AC1)," ",ROUND((S10+S12+S14)*AC1,0))) -> 0 | U23: lbs
B25: % Air | D25: =IF(ISBLANK('S1'!O40)," ",'S2'!$C$49) ->  | F25: % / 100 x 27.0 | I25: = | J25: =IF(ISTEXT(D25),0,ROUND(D25/100*27,2)) -> 0 | L25: Cu Ft | N25: Admix (solids if nec) | R25: = | S25: ='S1'!$Q$29 -> 0 | U25: lbs
G27: Subtotal = | J27: =J10+J12+J14+J17+J19+J23+J25 -> 0 | L27: Cu Ft
B29: F Agg | D29: =IF(ISBLANK('S1'!O40)," ",'S1'!D18) ->  | F29: 27.0 - subtotal = | J29: =IF(J27=0,0,27-J27) -> 0 | L29: Cu Ft | N29: x S.G. x 62.4 | R29: = | S29: =J29*'S1'!$Q$18*62.4 -> 0 | U29: lbs
H31: Totals | J31: =J29+J27 -> 0 | S31: =S10+S12+S14+S17+S19+S23+S25+S29 -> 0 | U31: lbs
A34: Wt. / Volume Calculations
Z35: =Z33 -> 0
B36: W/C Ratio | D36: =ROUND('S1'!R40,2) -> 0 | I36: Mix # | K36: ='S1'!R39 -> 0
B38: Cement | D38: =IF(ISBLANK('S1'!R40)," ",'S1'!D12) ->  | I38: = | J38: =IF(ISTEXT(S38),0,ROUND(S38/62.4/3.15,2)) -> 0 | L38: Cu Ft | N38: x S.G. x 62.4 | R38: = | U38: lbs
F39: % Pozzolan
B40: Plozzolan 1 | D40: =IF(ISBLANK('S1'!R40)," ",'S1'!D13) ->  | I40: = | J40: =IF(ISBLANK('S1'!$Q$13),0,IF(ISTEXT(S40),0,ROUND(S40/62.4/'S1'!$Q$13,2))) -> 0 | L40: Cu Ft | N40: x S.G. x 62.4 | R40: = | U40: lbs
F41: =IF(ISBLANK('S1'!R40)," ",(S40+S42)/(S38+S40+S42)) -> 
B42: Plozzolan 2 | D42: ='S1'!D14 -> 0 | I42: = | J42: =IF(ISBLANK('S1'!$Q$14),0,IF(ISTEXT(S42),0,ROUND(S42/62.4/'S1'!$Q$14,2))) -> 0 | L42: Cu Ft | N42: x S.G. x 62.4 | R42: = | U42: lbs
Y43: =J45+J47 -> 0
A44: `````````````````````````````````````````````````````````````````````````````````````````````````````````````````````````````````````````````````````````````````````````````````````
B45: C Agg 1 | D45: =IF(ISBLANK('S1'!R40)," ",'S1'!D16) ->  | I45: = | J45: =IF(ISBLANK('S1'!$Q$16),0,ROUND(S45/62.4/'S1'!$Q$16,2)) -> 0 | L45: Cu Ft | N45: x S.G. x 62.4 | R45: = | U45: lbs
B47: C Agg 2 | D47: =IF(ISBLANK('S1'!R40)," ",'S1'!D17) ->  | I47: = | J47: =IF(ISBLANK('S1'!$Q$17),0,ROUND(S47/62.4/'S1'!$Q$17,2)) -> 0 | L47: Cu Ft | N47: x S.G. x 62.4 | R47: = | U47: lbs
A48: =IF(COUNTA(S45:S47)=0,"",Sheet5!N19) -> 
A49: =Sheet5!N20 -> 
A50: `````````````````````````````````````````````````````````````````````````````````````````````````````````````````````````````````````````````````````````````````````````````````````
B51: Water | D51: =IF(ISBLANK('S1'!R40)," ",ROUND(S51/8.33,1)) ->  | I51: = | J51: =IF(ISBLANK('S1'!R40),0,ROUND(S51/62.4,2)) -> 0 | L51: Cu Ft | N51: x 62.4 | R51: = | S51: =IF(ISBLANK('S1'!R40),0,IF(ISTEXT(AC2),"",ROUND((S38+S40+S42)*AC2,0))) -> 0 | U51: lbs
B53: % Air | D53: =IF(ISBLANK('S1'!R40)," ",'S2'!$C$49) ->  | F53: % / 100 x 27.0 | I53: = | J53: =IF(ISTEXT(D53),0,ROUND(D53/100*27,2)) -> 0 | L53: Cu Ft | N53: Admix (solids if nec) | R53: = | S53: ='S1'!$Q$29 -> 0 | U53: lbs
G55: Subtotal = | J55: =J38+J40+J42+J45+J47+J51+J53 -> 0
B57: F Agg | D57: =IF(ISBLANK('S1'!R40)," ",'S1'!D18) ->  | F57: 27.0 - subtotal = | J57: =IF(J55=0,0,27-J55) -> 0 | L57: Cu Ft | N57: x S.G. x 62.4 | R57: = | S57: =J57*'S1'!$Q$18*62.4 -> 0 | U57: lbs
H59: Totals | J59: =J57+J55 -> 0 | L59: Cu Ft | S59: =S38+S40+S42+S45+S47+S51+S53+S57 -> 0 | U59: lbs

Sheet S3
A1: ='S1'!A1:D5 -> TR-4221A 1a-14 | E1: Concrete Mix Design Form | P1: Material Class | S1: ='S1'!S1 -> AAA | AA1: Rounded W/C Mix 1 | AC1: =ROUND(D8,2) -> 0.39
P2: Date | S2: ='S1'!S3 -> 00:00:00 | AA2: Rounded W/C Mix 2 | AC2: =ROUND(D36,2) -> 0.38
G3: ='S1'!G5 -> 0 | H3: ='S1'!H5 -> 0 | I3: - | J3: ='S1'!J5 -> 0 | K3: ='S1'!K5 -> 0 | L3: ='S1'!L5 -> 0 | M3: ='S1'!M5 -> 0 | P3: District | S3: ='S1'!S4 -> 0
E4: Mix Design Worksheet | P4: ECMS No. | S4: ='S1'!S5 -> 0
A6: Wt. / Volume Calculations
B8: W/C Ratio | D8: =ROUND('S1'!I40,2) -> 0.39 | I8: Mix # | K8: ='S1'!I39 -> 0
B10: Cement | D10: =IF(ISBLANK('S1'!I40)," ",'S1'!D12) -> 0 | I10: = | J10: =IF(ISTEXT(S10),0,ROUND(S10/62.4/3.15,2)) -> 3.05 | L10: Cu Ft | N10: x S.G. x 62.4 | R10: = | S10: =IF(ISBLANK('S1'!I40),0,'S2'!$T$33) -> 600 | U10: lbs
F11: % Pozzolan
B12: Plozzolan 1 | D12: =IF(ISBLANK('S1'!I40)," ",'S1'!D13) -> 0 | I12: = | J12: =IF(ISBLANK('S1'!$Q$13),0,IF(ISTEXT(S12),0,ROUND(S12/62.4/'S1'!$Q$13,2))) -> 0 | L12: Cu Ft | N12: x S.G. x 62.4 | R12: = | S12: =IF(ISBLANK('S1'!I40),0,'S2'!$T$35) -> 0 | U12: lbs
F13: =IF(ISBLANK('S1'!I40)," ",(S12+S14)/(S10+S12+S14)) -> 0
B14: Plozzolan 2 | D14: =IF(ISBLANK('S1'!I40)," ",'S1'!D14) -> 0 | I14: = | J14: =IF(ISBLANK('S1'!$Q$14),0,IF(ISTEXT(S14),0,ROUND(S14/62.4/'S1'!$Q$14,2))) -> 0 | L14: Cu Ft | N14: x S.G. x 62.4 | R14: = | S14: =IF(ISBLANK('S1'!I40),0,'S2'!$T$37) -> 0 | U14: lbs
Y15: =J17+J19 -> 0 | Z15: Vol C Agg
A16: ``````````````````````````````````````````````````````````````````````````````````````````````````````````````````````````````````````````````````````````````````````````````````````````````````````````````````````````````````
B17: C Agg 1 | D17: =IF(ISBLANK('S1'!I40)," ",'S1'!D16) -> 0 | I17: = | J17: =IF(ISBLANK('S1'!$Q$16),0,ROUND(S17/62.4/'S1'!$Q$16,2)) -> 0 | L17: Cu Ft | N17: x S.G. x 62.4 | R17: = | U17: lbs
B19: C Agg 2 | D19: =IF(ISBLANK('S1'!I40)," ",'S1'!D17) -> 0 | I19: = | J19: =IF(ISBLANK('S1'!$Q$17),0,ROUND(S19/62.4/'S1'!$Q$17,2)) -> 0 | L19: Cu Ft | N19: x S.G. x 62.4 | R19: = | U19: lbs
A20: =IF(COUNTA(S17:S19)=0,"",Sheet5!N13) -> 
A21: =Sheet5!N14 -> 
A22: `````````````````````````````````````````````````````````````````````````````````````````````````````````````````````````````````````````````````````````````````````````````````````
B23: Water | D23: =IF(ISTEXT(S23)," ",ROUND(S23/8.33,1)) -> 28.1 | I23: = | J23: =IF(ISTEXT(S23),0,ROUND(S23/62.4,2)) -> 3.75 | L23: Cu Ft | N23: x 62.4 | R23: = | S23: =IF(ISBLANK('S1'!I40),0,IF(ISTEXT(AC1)," ",ROUND((S10+S12+S14)*AC1,0))) -> 234 | U23: lbs
B25: % Air | D25: =IF(ISBLANK('S1'!I40)," ",'S2'!$C$49) -> 6 | F25: % / 100 x 27.0 | I25: = | J25: =IF(ISTEXT(D25),0,ROUND(D25/100*27,2)) -> 1.62 | L25: Cu Ft | N25: Admix (solids if nec) | R25: = | S25: ='S1'!$Q$29 -> 0 | U25: lbs
G27: Subtotal = | J27: =J10+J12+J14+J17+J19+J23+J25 -> 8.42 | L27: Cu Ft
B29: F Agg | D29: =IF(ISBLANK('S1'!I40)," ",'S1'!D18) -> 0 | F29: 27.0 - subtotal = | J29: =IF(J27=0,0,27-J27) -> 18.58 | L29: Cu Ft | N29: x S.G. x 62.4 | R29: = | S29: =J29*'S1'!$Q$18*62.4 -> 0 | U29: lbs
H31: Totals | J31: =IF(ISTEXT(J27),"",J29+J27) -> 27 | S31: =S10+S12+S14+S17+S19+S23+S25+S29 -> 834 | U31: lbs
A34: Wt. / Volume Calculations
B36: W/C Ratio | D36: =ROUND('S1'!L40,2) -> 0.38 | I36: Mix # | K36: ='S1'!L39 -> 0
B38: Cement | D38: =IF(ISBLANK('S1'!L40)," ",'S1'!D12) -> 0 | I38: = | J38: =IF(ISTEXT(S38),0,ROUND(S38/62.4/3.15,2)) -> 3.05 | L38: Cu Ft | N38: x S.G. x 62.4 | R38: = | S38: =IF(ISBLANK('S1'!L40),0,'S2'!$T$33) -> 600 | U38: lbs
F39: % Pozzolan
B40: Plozzolan 1 | D40: =IF(ISBLANK('S1'!L40)," ",'S1'!D13) -> 0 | I40: = | J40: =IF(ISBLANK('S1'!$Q$13),0,IF(ISTEXT(S40),0,ROUND(S40/62.4/'S1'!$Q$13,2))) -> 0 | L40: Cu Ft | N40: x S.G. x 62.4 | R40: = | S40: =IF(ISBLANK('S1'!L40),0,'S2'!$T$35) -> 0 | U40: lbs
F41: =IF(ISBLANK('S1'!I40)," ",(S40+S42)/(S38+S40+S42)) -> 0
B42: Plozzolan 2 | D42: =IF(ISBLANK('S1'!L40)," ",'S1'!D14) -> 0 | I42: = | J42: =IF(ISBLANK('S1'!$Q$14),0,IF(ISTEXT(S42),0,ROUND(S42/62.4/'S1'!$Q$14,2))) -> 0 | L42: Cu Ft | N42: x S.G. x 62.4 | R42: = | S42: =IF(ISBLANK('S1'!L40),0,'S2'!$T$37) -> 0 | U42: lbs
Y43: =J45+J47 -> 0 | Z43: Vol C Agg
A44: `````````````````````````````````````````````````````````````````````````````````````````````````````````````````````````````````````````````````````````````````````````````````````
B45: C Agg 1 | D45: =IF(ISBLANK('S1'!L40)," ",'S1'!D16) -> 0 | I45: = | J45: =IF(ISBLANK('S1'!$Q$16),0,ROUND(S45/62.4/'S1'!$Q$16,2)) -> 0 | L45: Cu Ft | N45: x S.G. x 62.4 | R45: = | U45: lbs
B47: C Agg 2 | D47: =IF(ISBLANK('S1'!L40)," ",'S1'!D17) -> 0 | I47: = | J47: =IF(ISBLANK('S1'!$Q$17),0,ROUND(S47/62.4/'S1'!$Q$17,2)) -> 0 | L47: Cu Ft | N47: x S.G. x 62.4 | R47: = | U47: lbs
A48: =IF(COUNTA(S45:S47)=0,"",Sheet5!N15) -> 
A49: =Sheet5!N16 -> 
A50: `````````````````````````````````````````````````````````````````````````````````````````````````````````````````````````````````````````````````````````````````````````````````````
B51: Water | D51: =IF(ISTEXT(S51)," ",ROUND(S51/8.33,1)) -> 27.4 | I51: = | J51: =IF(ISTEXT(S51),0,ROUND(S51/62.4,2)) -> 3.65 | L51: Cu Ft | N51: x 62.4 | R51: = | S51: =IF(ISBLANK('S1'!L40),0,IF(ISTEXT(AC2)," ",ROUND((S38+S40+S42)*AC2,0))) -> 228 | U51: lbs
B53: % Air | D53: =IF(ISBLANK('S1'!L40)," ",'S2'!$C$49) -> 6 | F53: % / 100 x 27.0 | I53: = | J53: =IF(ISTEXT(D53),0,ROUND(D53/100*27,2)) -> 1.62 | L53: Cu Ft | N53: Admix (solids if nec) | R53: = | S53: ='S1'!$Q$29 -> 0 | U53: lbs
G55: Subtotal = | J55: =J38+J40+J42+J45+J47+J51+J53 -> 8.32
B57: F Agg | D57: =IF(ISBLANK('S1'!L40)," ",'S1'!D18) -> 0 | F57: 27.0 - subtotal = | J57: =IF(J55=0,0,27-J55) -> 18.68 | L57: Cu Ft | N57: x S.G. x 62.4 | R57: = | S57: =J57*'S1'!$Q$18*62.4 -> 0 | U57: lbs
H59: Totals | J59: =IF(ISTEXT(J55),"",J57+J55) -> 27 | L59: Cu Ft | S59: =S38+S40+S42+S45+S47+S51+S53+S57 -> 828 | U59: lbs

Sheet S4
A1: ='S1'!A1:D5 -> TR-4221A 1a-14 | E1: Concrete Mix Design Form | P1: Material Class | S1: ='S1'!S1 -> AAA | AA1: Rounded W/C Mix 3 | AC1: =ROUND(D8,2) -> 0
P2: Date | S2: ='S1'!S3 -> 00:00:00 | AA2: Rounded W/C Mix 4 | AC2: =ROUND(D36,2) -> 0
G3: ='S1'!G5 -> 0 | H3: ='S1'!H5 -> 0 | I3: - | J3: ='S1'!J5 -> 0 | K3: ='S1'!K5 -> 0 | L3: ='S1'!L5 -> 0 | M3: ='S1'!M5 -> 0 | P3: District | S3: ='S1'!S4 -> 0
E4: Mix Design Worksheet | P4: ECMS No. | S4: ='S1'!S5 -> 0
A6: Wt. / Volume Calculations
B8: W/C Ratio | D8: =ROUND('S1'!O40,2) -> 0 | I8: Mix # | K8: ='S1'!O39 -> 0
B10: Cement | D10: =IF(ISBLANK('S1'!O40)," ",'S1'!D12) ->  | I10: = | J10: =IF(ISTEXT(S10),0,ROUND(S10/62.4/3.15,2)) -> 0 | L10: Cu Ft | N10: x S.G. x 62.4 | R10: = | S10: =IF(ISBLANK('S1'!O40),0,'S2'!$T$33) -> 0 | U10: lbs
F11: % Pozzolan
B12: Plozzolan 1 | D12: =IF(ISBLANK('S1'!O40)," ",'S1'!D13) ->  | I12: = | J12: =IF(ISBLANK('S1'!$Q$13),0,IF(ISTEXT(S12),0,ROUND(S12/62.4/'S1'!$Q$13,2))) -> 0 | L12: Cu Ft | N12: x S.G. x 62.4 | R12: = | S12: =IF(ISBLANK('S1'!O40),0,'S2'!$T$35) -> 0 | U12: lbs
F13: =IF(ISBLANK('S1'!O40)," ",(S12+S14)/(S10+S12+S14)) -> 
B14: Plozzolan 2 | D14: =IF(ISBLANK('S1'!O40)," ",'S1'!D14) ->  | I14: = | J14: =IF(ISBLANK('S1'!$Q$14),0,IF(ISTEXT(S14),0,ROUND(S14/62.4/'S1'!$Q$14,2))) -> 0 | L14: Cu Ft | N14: x S.G. x 62.4 | R14: = | S14: =IF(ISBLANK('S1'!O40),0,'S2'!$T$37) -> 0 | U14: lbs
Y15: =J17+J19 -> 0 | Z15: Vol C Agg
A16: ``````````````````````````````````````````````````````````````````````````````````````````````````````````````````````````````````````````````````````````````````````````````````````````````````````````````````````````````````
B17: C Agg 1 | D17: =IF(ISBLANK('S1'!O40)," ",'S1'!D16) ->  | I17: = | J17: =IF(ISBLANK('S1'!$Q$16),0,ROUND(S17/62.4/'S1'!$Q$16,2)) -> 0 | L17: Cu Ft | N17: x S.G. x 62.4 | R17: = | U17: lbs
B19: C Agg 2 | D19: =IF(ISBLANK('S1'!O40)," ",'S1'!D17) ->  | I19: = | J19: =IF(ISBLANK('S1'!$Q$17),0,ROUND(S19/62.4/'S1'!$Q$17,2)) -> 0 | L19: Cu Ft | N19: x S.G. x 62.4 | R19: = | U19: lbs
A20: =IF(COUNTA(S17:S19)=0,"",Sheet5!N17) -> 
A21: =Sheet5!N18 -> 
A22: `````````````````````````````````````````````````````````````````````````````````````````````````````````````````````````````````````````````````````````````````````````````````````
B23: Water | D23: =IF(ISTEXT(S23)," ",ROUND(S23/8.33,1)) -> 0 | I23: = | J23: =IF(ISTEXT(S23),0,ROUND(S23/62.4,2)) -> 0 | L23: Cu Ft | N23: x 62.4 | R23: = | S23: =IF(ISBLANK('S1'!O40),0,IF(ISTEXT(AC1)," ",ROUND((S10+S12+S14)*AC1,0))) -> 0 | U23: lbs
B25: % Air | D25: =IF(ISBLANK('S1'!O40)," ",'S2'!$C$49) ->  | F25: % / 100 x 27.0 | I25: = | J25: =IF(ISTEXT(D25),0,ROUND(D25/100*27,2)) -> 0 | L25: Cu Ft | N25: Admix (solids if nec) | R25: = | S25: ='S1'!$Q$29 -> 0 | U25: lbs
G27: Subtotal = | J27: =J10+J12+J14+J17+J19+J23+J25 -> 0 | L27: Cu Ft
B29: F Agg | D29: =IF(ISBLANK('S1'!O40)," ",'S1'!D18) ->  | F29: 27.0 - subtotal = | J29: =IF(J27=0,0,27-J27) -> 0 | L29: Cu Ft | N29: x S.G. x 62.4 | R29: = | S29: =J29*'S1'!$Q$18*62.4 -> 0 | U29: lbs
H31: Totals | J31: =J29+J27 -> 0 | S31: =S10+S12+S14+S17+S19+S23+S25+S29 -> 0 | U31: lbs
A34: Wt. / Volume Calculations
Z35: =Z33 -> 0
B36: W/C Ratio | D36: =ROUND('S1'!R40,2) -> 0 | I36: Mix # | K36: ='S1'!R39 -> 0
B38: Cement | D38: =IF(ISBLANK('S1'!R40)," ",'S1'!D12) ->  | I38: = | J38: =IF(ISTEXT(S38),0,ROUND(S38/62.4/3.15,2)) -> 0 | L38: Cu Ft | N38: x S.G. x 62.4 | R38: = | S38: =IF(ISBLANK('S1'!R40),0,'S2'!$T$33) -> 0 | U38: lbs
F39: % Pozzolan
B40: Plozzolan 1 | D40: =IF(ISBLANK('S1'!R40)," ",'S1'!D13) ->  | I40: = | J40: =IF(ISBLANK('S1'!$Q$13),0,IF(ISTEXT(S40),0,ROUND(S40/62.4/'S1'!$Q$13,2))) -> 0 | L40: Cu Ft | N40: x S.G. x 62.4 | R40: = | S40: =IF(ISBLANK('S1'!R40),0,'S2'!$T$35) -> 0 | U40: lbs
F41: =IF(ISBLANK('S1'!R40)," ",(S40+S42)/(S38+S40+S42)) -> 
B42: Plozzolan 2 | D42: ='S1'!D14 -> 0 | I42: = | J42: =IF(ISBLANK('S1'!$Q$14),0,IF(ISTEXT(S42),0,ROUND(S42/62.4/'S1'!$Q$14,2))) -> 0 | L42: Cu Ft | N42: x S.G. x 62.4 | R42: = | S42: ='S2'!$T$37 -> 0 | U42: lbs
Y43: =J45+J47 -> 0 | Z43: Vol c Agg
A44: `````````````````````````````````````````````````````````````````````````````````````````````````````````````````````````````````````````````````````````````````````````````````````
B45: C Agg 1 | D45: =IF(ISBLANK('S1'!R40)," ",'S1'!D16) ->  | I45: = | J45: =IF(ISBLANK('S1'!$Q$16),0,ROUND(S45/62.4/'S1'!$Q$16,2)) -> 0 | L45: Cu Ft | N45: x S.G. x 62.4 | R45: = | U45: lbs
B47: C Agg 2 | D47: =IF(ISBLANK('S1'!R40)," ",'S1'!D17) ->  | I47: = | J47: =IF(ISBLANK('S1'!$Q$17),0,ROUND(S47/62.4/'S1'!$Q$17,2)) -> 0 | L47: Cu Ft | N47: x S.G. x 62.4 | R47: = | U47: lbs
A48: =IF(COUNTA(S45:S47)=0,"",Sheet5!N19) -> 
A49: =Sheet5!N20 -> 
A50: `````````````````````````````````````````````````````````````````````````````````````````````````````````````````````````````````````````````````````````````````````````````````````
B51: Water | D51: =IF(ISBLANK('S1'!R40)," ",ROUND(S51/8.33,1)) ->  | I51: = | J51: =IF(ISBLANK('S1'!R40),0,ROUND(S51/62.4,2)) -> 0 | L51: Cu Ft | N51: x 62.4 | R51: = | S51: =IF(ISBLANK('S1'!R40),0,IF(ISTEXT(AC2),"",ROUND((S38+S40+S42)*AC2,0))) -> 0 | U51: lbs
B53: % Air | D53: =IF(ISBLANK('S1'!R40)," ",'S2'!$C$49) ->  | F53: % / 100 x 27.0 | I53: = | J53: =IF(ISTEXT(D53),0,ROUND(D53/100*27,2)) -> 0 | L53: Cu Ft | N53: Admix (solids if nec) | R53: = | S53: ='S1'!$Q$29 -> 0 | U53: lbs
G55: Subtotal = | J55: =J38+J40+J42+J45+J47+J51+J53 -> 0
B57: F Agg | D57: =IF(ISBLANK('S1'!R40)," ",'S1'!D18) ->  | F57: 27.0 - subtotal = | J57: =IF(J55=0,0,27-J55) -> 0 | L57: Cu Ft | N57: x S.G. x 62.4 | R57: = | S57: =J57*'S1'!$Q$18*62.4 -> 0 | U57: lbs
H59: Totals | J59: =J57+J55 -> 0 | L59: Cu Ft | S59: =S38+S40+S42+S45+S47+S51+S53+S57 -> 0 | U59: lbs

Sheet Sheet5 (hidden)
A1: AAAP | I1: 1 | K1: ='S1'!S1 -> AAA | L1: =IF(K1="AAAP",1,IF(K1="AAAHPC",2,IF(K1="AAA",3,IF(K1="AA Slip Form Paving",4,IF(K1="AA",5,IF(K1="AA 7 Hr. Accl.",6,IF(K1="A",7,IF(K1="A Tremie",8,IF(K1="C",9,IF(K1="HES",10,IF(K1="Flow Fill A",11,IF(K1="Flow Fill B",12,IF(K1="Flow Fill C",13,IF(K1="Grout",14)))))))))))))) -> 3 | N1: W/C | O1: Total Cem. | P1: First Break | Q1: 28 day Break | R1: Volume Trial | S1: Volume Adj. 1 | T1: Volume Adj. 2 | U1: Volume Adj. 3 | V1: Volume Adj. 4
A2: Cement Factor | C2: W/C ratio | D2: PSI overdesign | G2: Volume
A3: Min | B3: Max | C3: Max | D3: 3 day | E3: 7 day | F3: 28 day | G3: Min | H3: Max | N3: ='S1'!F40 -> 0.4 | O3: ='S2'!AA23 -> 600 | P3: =IF(L1=6,'S2'!N63,'S2'!F65) ->  | Q3: ='S2'!T65 ->  | R3: ='S2'!AA40 -> 0 | S3: ='S3'!Y15 -> 0 | T3: ='S3'!Y43 -> 0 | U3: ='S4'!Y15 -> 0 | V3: ='S4'!Y43 -> 0
A4: 560 | B4: 752 | C4: 0.4549 | E4: 3000 | F4: 4500
A5: Notes
A6: Exceeds max W/C ratio for a 'AAAP' mix | K6: W/C Comment | N6: =IF(AND($L$1=1,$N$3>$C$4),$A6,IF(AND($L$1=2,$N$3>$C$15),$A17,IF(AND($L$1=3,$N$3>$C$28),$A30,IF(AND($L$1=4,$N$3>$C$39),$A41,IF(AND($L$1=5,$N$3>$C$52),$A54,IF(AND($L$1=6,$N$3>$C$65),$A67,IF(AND($L$1=7,$N$3>$C$78),$A80,IF(AND($L$1=8,$N$3>$C$91),$A93,IF(AND($L$1=9,$N$3>$C$104),$A106,IF(AND($L$1=10,$N$3>$C$117),$A119,"")))))))))) -> 
A7: Cement factor does not meet min. for a 'AAAP' mix | K7: Min. Cement Comment | N7: =IF(AND($L$1=1,$O$3<$A$4),$A7,IF(AND($L$1=2,$O$3<$A$15),$A18,IF(AND($L$1=3,$O$3<$A$28),$A31,IF(AND($L$1=4,$O$3<$A$39),$A42,IF(AND($L$1=5,$O$3<$A$52),$A55,IF(AND($L$1=6,$O$3<$A$65),$A68,IF(AND($L$1=7,$O$3<$A$78),$A81,IF(AND($L$1=8,$O$3<$A$91),$A94,IF(AND($L$1=9,$O$3<$A$104),$A107,IF(AND($L$1=10,$O$3<$A$117),$A120,"")))))))))) -> Cement factor does not meet min. for a 'AAA' mix
A8: Cement factor exceeds the max. for a 'AAAP' mix | K8: Max. Cement Comment | N8: =IF(AND($L$1=1,$O$3>$B$4),$A8,IF(AND($L$1=2,$O$3>$B$15),$A19,IF(AND($L$1=3,$O$3>$B$28),$A32,IF(AND($L$1=4,$O$3>$B$39),$A43,IF(AND($L$1=5,$O$3>$B$52),$B56,IF(AND($L$1=6,$O$3>$B$65),$A69,IF(AND($L$1=7,$O$3>$B$78),$A82,IF(AND($L$1=8,$O$3>$B$91),$A95,IF(AND($L$1=9,$O$3>$B$104),$A108,IF(AND($L$1=10,$O$3>$B$117),$A121,"")))))))))) -> 
A9: Does not meet 7 day stength requirements of 3000 psi | K9: First Break Comment | N9: =IF(AND($L$1=1,$P$3<$E$4),$A9,IF(AND($L$1=2,$P$3<$E$15),$A20,IF(AND($L$1=3,$P$3<$E$28),$A33,IF(AND($L$1=4,$P$3<$E$39),$A44,IF(AND($L$1=5,$P$3<$E$52),$A57,IF(AND($L$1=6,$P$3<$E$65),$A70,IF(AND($L$1=7,$P$3<$E$78),$A83,IF(AND($L$1=8,$P$3<$E$91),$A96,IF(AND($L$1=9,$P$3<$E$104),$A109,IF(AND($L$1=10,$P$3<$E$117),$A122,"")))))))))) -> 
A10: Does not meet 28 day overdesign strength requirements of 4500 psi | K10: 28 Day Break Comment | N10: =IF(AND($L$1=1,$Q$3<$F$4),$A10,IF(AND($L$1=2,$Q$3<$F$15),$A21,IF(AND($L$1=3,$Q$3<$F$28),$A34,IF(AND($L$1=4,$Q$3<$F$39),$A45,IF(AND($L$1=5,$Q$3<$F$52),$A58,IF(AND($L$1=6,$Q$3<$F$65),$A71,IF(AND($L$1=7,$Q$3<$F$78),$A84,IF(AND($L$1=8,$Q$3<$F$91),$A97,IF(AND($L$1=9,$Q$3<$F$104),$A110,IF(AND($L$1=10,$Q$3<$F$117),$A123,IF(AND($L$1=11,$Q$3>$F$130),$A132,IF(AND($L$1=12,$Q$3>$F$137),$A139,IF(AND($L$1=13,$Q$3<$F$144),$A146,IF(AND($L$1=14,$Q$3<$F$151),$A153,"")))))))))))))) -> 
J11: Min. Volume Trial Mix Comment | N11: =IF(AND($L$1=4,$R$3<$G$39),$A$46,IF(AND($L$1=5,$R$3<$G$52),$A$59,IF(AND($L$1=6,$R$3<$G$65),$A$72,IF(AND($L$1=7,$R$3<$G$78),$A$85,IF(AND($L$1=8,$R$3<$G$91),$A$98,IF(AND($L$1=9,$R$3<$G$104),$A$111,IF(AND($L$1=10,$R$3<$G$117),$A$124,""))))))) -> 
A12: AAAHPC | I12: 2 | J12: Max. Volume Trial Mix Comment | N12: =IF(AND($L$1=4,$R$3>$H$39),$A$47,IF(AND($L$1=5,$R$3>$H$52),$A$60,IF(AND($L$1=6,$R$3>$H$65),$A$73,IF(AND($L$1=7,$R$3>$H$78),$A$86,IF(AND($L$1=8,$R$3>$H$91),$A$99,IF(AND($L$1=9,$R$3>$H$104),$A$112,IF(AND($L$1=10,$R$3>$H$117),$A$125,""))))))) -> 
A13: Cement Factor | C13: W/C ratio | D13: PSI overdesign | G13: Volume | J13: Min.Volume Adjusted Mix 1 Comment | N13: =IF(AND($L$1=4,$S$3<$G$39),$A$46,IF(AND($L$1=5,$S$3<$G$52),$A$59,IF(AND($L$1=6,$S$3<$G$65),$A$72,IF(AND($L$1=7,$S$3<$G$78),$A$85,IF(AND($L$1=8,$S$3<$G$91),$A$98,IF(AND($L$1=9,$S$3<$G$104),$A$111,IF(AND($L$1=10,$S$3<$G$117),$A$124,""))))))) -> 
A14: Min | B14: Max | C14: Max | D14: 3 day | E14: 7 day | F14: 28 day | G14: Min | H14: Max | J14: Max.Volume Adjusted Mix 1 Comment | N14: =IF(AND($L$1=4,$S$3>$H$39),$A$47,IF(AND($L$1=5,$S$3>$H$52),$A$60,IF(AND($L$1=6,$S$3>$H$65),$A$73,IF(AND($L$1=7,$S$3>$H$78),$A$86,IF(AND($L$1=8,$S$3>$H$91),$A$99,IF(AND($L$1=9,$S$3>$H$104),$A$112,IF(AND($L$1=10,$S$3>$H$117),$A$125,""))))))) -> 
A15: 564 | B15: 752 | C15: 0.4349 | E15: 3600 | F15: 5000 | J15: Min.Volume Adjusted Mix 2 Comment | N15: =IF(AND($L$1=4,$T$3<$G$39),$A$46,IF(AND($L$1=5,$T$3<$G$52),$A$59,IF(AND($L$1=6,$T$3<$G$65),$A$72,IF(AND($L$1=7,$T$3<$G$78),$A$85,IF(AND($L$1=8,$T$3<$G$91),$A$98,IF(AND($L$1=9,$T$3<$G$104),$A$111,IF(AND($L$1=10,$T$3<$G$117),$A$124,""))))))) -> 
A16: Notes | J16: Max.Volume Adjusted Mix 2 Comment | N16: =IF(AND($L$1=4,$T$3>$H$39),$A$47,IF(AND($L$1=5,$T$3>$H$52),$A$60,IF(AND($L$1=6,$T$3>$H$65),$A$73,IF(AND($L$1=7,$T$3>$H$78),$A$86,IF(AND($L$1=8,$T$3>$H$91),$A$99,IF(AND($L$1=9,$T$3>$H$104),$A$112,IF(AND($L$1=10,$T$3>$H$117),$A$125,""))))))) -> 
A17: Exceeds max W/C ratio for a 'AAAHPC' mix | J17: Min.Volume Adjusted Mix 3 Comment | N17: =IF(AND($L$1=4,$U$3<$G$39),$A$46,IF(AND($L$1=5,$U$3<$G$52),$A$59,IF(AND($L$1=6,$U$3<$G$65),$A$72,IF(AND($L$1=7,$U$3<$G$78),$A$85,IF(AND($L$1=8,$U$3<$G$91),$A$98,IF(AND($L$1=9,$U$3<$G$104),$A$111,IF(AND($L$1=10,$U$3<$G$117),$A$124,""))))))) -> 
A18: Cement factor does not meet min. for a 'AAAHPC' mix | J18: Max.Volume Adjusted Mix 3 Comment | N18: =IF(AND($L$1=4,$U$3>$H$39),$A$47,IF(AND($L$1=5,$U$3>$H$52),$A$60,IF(AND($L$1=6,$U$3>$H$65),$A$73,IF(AND($L$1=7,$U$3>$H$78),$A$86,IF(AND($L$1=8,$U$3>$H$91),$A$99,IF(AND($L$1=9,$U$3>$H$104),$A$112,IF(AND($L$1=10,$U$3>$H$117),$A$125,""))))))) -> 
A19: Cement factor exceeds the max. for a 'AAAHPC' mix | J19: Min.Volume Adjusted Mix 4 Comment | N19: =IF(AND($L$1=4,$V$3<$G$39),$A$46,IF(AND($L$1=5,$V$3<$G$52),$A$59,IF(AND($L$1=6,$V$3<$G$65),$A$72,IF(AND($L$1=7,$V$3<$G$78),$A$85,IF(AND($L$1=8,$V$3<$G$91),$A$98,IF(AND($L$1=9,$V$3<$G$104),$A$111,IF(AND($L$1=10,$V$3<$G$117),$A$124,""))))))) -> 
A20: Does not meet 7 day stength requirements of 3600 psi | J20: Max.Volume Adjusted Mix 4 Comment | N20: =IF(AND($L$1=4,$V$3>$H$39),$A$47,IF(AND($L$1=5,$V$3>$H$52),$A$60,IF(AND($L$1=6,$V$3>$H$65),$A$73,IF(AND($L$1=7,$V$3>$H$78),$A$86,IF(AND($L$1=8,$V$3>$H$91),$A$99,IF(AND($L$1=9,$V$3>$H$104),$A$112,IF(AND($L$1=10,$V$3>$H$117),$A$125,""))))))) -> 
A21: Does not meet 28 day overdesign strength requirements of 5000 psi
A22: Must be < 1200 unless approve by the DME
A23: Must be < 500 microstrain
A25: AAA | I25: 3
A26: Cement Factor | C26: W/C ratio | D26: PSI overdesign | G26: Volume
A27: Min | B27: Max | C27: Max | D27: 3 day | E27: 7 day | F27: 28 day | G27: Min | H27: Max
A28: 634.5 | B28: 752 | C28: 0.4349 | E28: 3600 | F28: 5500
A29: Notes
A30: Exceeds max W/C ratio for a 'AAA' mix
A31: Cement factor does not meet min. for a 'AAA' mix
A32: Cement factor exceeds the max. for a 'AAA' mix
A33: Does not meet 7 day stength requirements of 3600 psi
A34: Does not meet 28 day overdesign strength requirements of 5500 psi
A36: AA Slip Form Paving | I36: 4
A37: Cement Factor | C37: W/C ratio | D37: PSI overdesign | G37: Volume
A38: Min | B38: Max | C38: Max | D38: 3 day | E38: 7 day | F38: 28 day | G38: Min | H38: Max
A39: 587.5 | B39: 752 | C39: 0.4749 | E39: 3000 | F39: 4750 | G39: 11 | H39: 13.1
A40: Notes
A41: Exceeds max W/C ratio for a 'AA' Slip Form Paving mix
A42: Cement factor does not meet min. for a 'AA' mix
A43: Cement factor exceeds the max. for a 'AA' mix
A44: Does not meet 7 day stength requirements of 3000 psi
A45: Does not meet 28 day overdesign strength requirements of 4750 psi
A46: Does not meet min. volume requirements for a 'AA' Slip Form Paving mix
A47: Exceeds the max. volume requirements for a 'AA' Slip Form Paving mix
A49: AA | I49: 5
A50: Cement Factor | C50: W/C ratio | D50: PSI overdesign | G50: Volume
A51: Min | B51: Max | C51: Max | D51: 3 day | E51: 7 day | F51: 28 day | G51: Min | H51: Max
A52: 587.5 | B52: 752 | C52: 0.4749 | E52: 3000 | F52: 4750 | G52: 9.93 | H52: 13.1
A53: Notes
A54: Exceeds max W/C ratio for a 'AA' mix
A55: Cement factor does not meet min. for a 'AA' mix
A56: Cement factor exceeds the max. for a 'AA' mix
A57: Does not meet 7 day stength requirements of 3000 psi
A58: Does not meet 28 day overdesign strength requirements of 4750 psi
A59: Does not meet min. volume requirements for a 'AA' mix but can be approved according to ACI by the DME for a 'pump mix'
A60: Exceeds the max. volume requirements for a 'AA' mix
A62: AA Accel. Patching | I62: 6
A63: Cement Factor | C63: W/C ratio | D63: PSI overdesign | G63: Volume
A64: Min | B64: Max | C64: Max | E64: 7 hrs. | F64: 28 day | G64: Min | H64: Max
A65: 587.5 | B65: 800 | C65: 0.4749 | E65: 1500 | F65: 4750 | G65: 9.93 | H65: 13.1
A66: Notes
A67: Exceeds max W/C ratio for a 'AA' Accel. mix
A68: Cement factor does not meet min. for a 'AA' Accel. mix
A69: Cement factor exceeds the max. for a 'AA' Accel. mix but can be approved by the DME
A70: Does not meet 7 hour stength requirements of 1500 psi
A71: Does not meet 28 day overdesign strength requirements of 4750 psi
A72: Does not meet min. volume requirements for a 'AA' Accel. mix
A73: Exceeds the max. volume requirements for a 'AA' Accel. mix
A75: A | I75: 7
A76: Cement Factor | C76: W/C ratio | D76: PSI overdesign | G76: Volume
A77: Min | B77: Max | C77: Max | D77: 3 day | E77: 7 day | F77: 28 day | G77: Min | H77: Max
A78: 564 | B78: 752 | C78: 0.5049 | E78: 2750 | F78: 4300 | G78: 10.18 | H78: 13.43
A79: Notes
A80: Exceeds max W/C ratio for a 'A' mix
A81: Cement factor does not meet min. for a 'A' mix
A82: Cement factor exceeds the max. for a 'A' mix
A83: Does not meet 7 day stength requirements of 2750 psi
A84: Does not meet 28 day overdesign strength requirements of 4300 psi
A85: Does not meet min. volume requirements for a 'A' mix but can be approved according to ACI by the DME for a 'pump mix'
A86: Exceeds the max. volume requirements for a 'A' mix
A88: A Tremie | I88: 8
A89: Cement Factor | C89: W/C ratio | D89: PSI overdesign | G89: Volume
A90: Min | B90: Max | C90: Max | D90: 3 day | E90: 7 day | F90: 28 day | G90: Min | H90: Max
A91: 658 | B91: 752 | C91: 0.5049 | E91: 2000 | F91: 4300 | G91: 10.18 | H91: 13.43
A92: Notes
A93: Exceeds max W/C ratio for a 'A' Tremie mix
A94: Cement factor does not meet min. for a 'A' Tremie mix
A95: Cement factor exceeds the max. for a 'A' Tremie mix
A96: Does not meet 7 day stength requirements of 2000 psi
A97: Does not meet 28 day overdesign strength requirements of 4300 psi
A98: Does not meet min. volume requirements for a 'A' Tremie mix
A99: Exceeds the max. volume requirements for a 'A' Tremie mix
A101: C | I101: 9
A102: Cement Factor | C102: W/C ratio | D102: PSI overdesign | G102: Volume
A103: Min | B103: Max | C103: Max | D103: 3 day | E103: 7 day | F103: 28 day | G103: Min | H103: Max
A104: 394.8 | B104: 658 | C104: 0.6649 | E104: 1500 | F104: 2900 | G104: 11.45 | H104: 15.1
A105: Notes
A106: Exceeds max W/C ratio for a 'C' mix
A107: Cement factor does not meet min. for a 'C' mix
A108: Cement factor exceeds the max. for a 'C' mix
A109: Does not meet 7 day stength requirements of 1500 psi
A110: Does not meet 28 day overdesign strength requirements of 2900 psi
A111: Does not meet min. volume requirements for a 'C' mix
A112: Exceeds the max. volume requirements for a 'C' mix
A114: HES | I114: 10
A115: Cement Factor | C115: W/C ratio | D115: PSI overdesign | G115: Volume
A116: Min | B116: Max | C116: Max | E116: 3 day | F116: 28 day | G116: Min | H116: Max
A117: 752 | B117: 846 | C117: 0.4049 | E117: 3000 | F117: 4750 | G117: 9.1 | H117: 12
A118: Notes
A119: Exceeds max W/C ratio for a 'HES' mix
A120: Cement factor does not meet min. for a 'HES' mix
A121: Cement factor exceeds the max. for a 'HES' mix
A122: Does not meet 3 day stength requirements of 3000 psi
A123: Does not meet 28 day overdesign strength requirements of 4750 psi
A124: Does not meet min. volume requirements for a 'HES' mix
A125: Exceeds the max. volume requirements for a 'HES' mix
A127: Flow Fill A | I127: 11
A128: Cement Factor | C128: W/C ratio | D128: PSI overdesign | G128: Volume
A129: Min | B129: Max | C129: Max | D129: 3 day | E129: 7 day | F129: 28 day | G129: Min | H129: Max
F130: 125
A131: Notes
A132: Exceeds 28 day strength requirements of 125 psi.
A134: Flow Fill B | I134: 12
A135: Cement Factor | C135: W/C ratio | D135: PSI overdesign | G135: Volume
A136: Min | B136: Max | C136: Max | D136: 3 day | E136: 7 day | F136: 28 day | G136: Min | H136: Max
F137: 125
A138: Notes
A139: Exceeds 28 day strength requirements of 125 psi.
A141: Flow Fill C | I141: 13
A142: Cement Factor | C142: W/C ratio | D142: PSI overdesign | G142: Volume
A143: Min | B143: Max | C143: Max | D143: 3 day | E143: 7 day | F143: 28 day | G143: Min | H143: Max
F144: 800
A145: Notes
A146: Does not meet 28 day overdesign strength requirements of 800 psi
A148: Grout | I148: 14
A149: Cement Factor | C149: W/C ratio | D149: PSI overdesign | G149: Volume
A150: Min | B150: Max | C150: Max | D150: 3 day | E150: 7 day | F150: 28 day | G150: Min | H150: Max
F151: 2500
A152: Notes
A153: Does not meet 28 day strength requirements of 2500 psi
